[Event "Live Chess"]
[Site "Chess.com"]
[Date "2024.06.02"]
[Round "-"]
[White "davigator"]
[Black "degringolade64"]
[Result "1-0"]
[WhiteElo "2346"]
[BlackElo "2079"]
[TimeControl "300"]
[EndTime "8:31:30 PDT"]
[Termination "davigator won by resignation"]

1. e4 {[%clk 0:04:58.3]} 1... e5 {[%clk 0:04:57.8]} 2. Nf3 {[%clk 0:04:56.5]}
2... Nc6 {[%clk 0:04:56.9]} 3. Bc4 {[%clk 0:04:55.4]} 3... Nf6 {[%clk 0:04:55]}
4. d3 {[%clk 0:04:51]} 4... h6 {[%clk 0:04:53.1]} 5. O-O {[%clk 0:04:46.7]} 5...
d6 {[%clk 0:04:52.1]} 6. a4 {[%clk 0:04:45.5]} 6... g6 {[%clk 0:04:49.1]} 7. a5
{[%clk 0:04:44.5]} 7... a6 {[%clk 0:04:47.3]} 8. Re1 {[%clk 0:04:42.7]} 8... Bg7
{[%clk 0:04:46.1]} 9. h3 {[%clk 0:04:41.5]} 9... O-O {[%clk 0:04:43.5]} 10. c3
{[%clk 0:04:38.6]} 10... Kh7 {[%clk 0:04:30.1]} 11. Nbd2 {[%clk 0:04:35]} 11...
Nh5 {[%clk 0:04:23.4]} 12. Nf1 {[%clk 0:04:32.6]} 12... f5 {[%clk 0:04:20]} 13.
exf5 {[%clk 0:04:31.9]} 13... gxf5 {[%clk 0:03:44.2]} 14. Ng5+ {[%clk
0:04:30.1]} 14... hxg5 {[%clk 0:03:37.4]} 15. Qxh5+ {[%clk 0:04:29.2]} 15... Bh6
{[%clk 0:03:36.5]} 16. h4 {[%clk 0:04:20.4]} 16... f4 {[%clk 0:03:25.9]} 17. d4
{[%clk 0:04:18.1]} 17... d5 {[%clk 0:03:22.1]} 18. Bd3+ {[%clk 0:03:58.5]} 18...
e4 {[%clk 0:03:20.6]} 19. Rxe4 {[%clk 0:03:57.9]} 19... Bf5 {[%clk 0:03:12.8]}
20. Re5 {[%clk 0:03:37.7]} 20... Nxe5 {[%clk 0:03:03.9]} 21. Bxf5+ {[%clk
0:03:35.5]} 21... Rxf5 {[%clk 0:03:01.4]} 22. dxe5 {[%clk 0:03:34.6]} 22... Qe8
{[%clk 0:02:48.7]} 23. Qg4 {[%clk 0:03:26.3]} 23... Qxe5 {[%clk 0:02:42.1]} 24.
Bd2 {[%clk 0:03:19.5]} 24... Qf6 {[%clk 0:02:35.5]} 25. Nh2 {[%clk 0:03:15.1]}
25... gxh4 {[%clk 0:02:21.9]} 26. Qh3 {[%clk 0:03:13.4]} 26... Rg8 {[%clk
0:02:18.3]} 27. Nf3 {[%clk 0:03:11.4]} 27... Rf8 {[%clk 0:01:23.1]} 28. Re1
{[%clk 0:03:09.4]} 28... Rf7 {[%clk 0:01:16.7]} 29. Re8 {[%clk 0:03:06]} 29...
Bf8 {[%clk 0:01:10.4]} 30. Qg4 {[%clk 0:03:01.5]} 30... Rg7 {[%clk 0:01:05]} 31.
Qh3 {[%clk 0:02:59.9]} 31... Bd6 {[%clk 0:01:01.9]} 32. Re1 {[%clk 0:02:51.7]}
32... Re7 {[%clk 0:00:57]} 33. Rd1 {[%clk 0:02:49.3]} 33... Re2 {[%clk
0:00:55.3]} 34. Kf1 {[%clk 0:02:46.8]} 34... Re4 {[%clk 0:00:48.8]} 35. b3
{[%clk 0:02:42.4]} 35... Bc5 {[%clk 0:00:46.5]} 36. b4 {[%clk 0:02:39.2]} 36...
Bd6 {[%clk 0:00:43.1]} 37. Nd4 {[%clk 0:02:37.8]} 37... Rfe5 {[%clk 0:00:28.6]}
38. Nf3 {[%clk 0:02:29.2]} 38... Rh5 {[%clk 0:00:26.1]} 39. Qg4 {[%clk
0:02:27.9]} 39... Qg7 {[%clk 0:00:20]} 40. Qxh5+ {[%clk 0:02:26.2]} 1-0

[Event "Live Chess"]
[Site "Chess.com"]
[Date "2024.06.02"]
[Round "-"]
[White "halfberg"]
[Black "Andysav3"]
[Result "0-1"]
[WhiteElo "1895"]
[BlackElo "1906"]
[TimeControl "300"]
[EndTime "8:31:40 PDT"]
[Termination "Andysav3 won by resignation"]

1. e4 {[%clk 0:04:55.3]} 1... c5 {[%clk 0:04:57.8]} 2. Nf3 {[%clk 0:04:53.4]}
2... Nc6 {[%clk 0:04:56.9]} 3. d4 {[%clk 0:04:52.1]} 3... cxd4 {[%clk
0:04:56.1]} 4. Nxd4 {[%clk 0:04:51.2]} 4... Nf6 {[%clk 0:04:55.5]} 5. Nc3 {[%clk
0:04:49.5]} 5... e5 {[%clk 0:04:54.4]} 6. Ndb5 {[%clk 0:04:48.5]} 6... d6 {[%clk
0:04:53.4]} 7. Bg5 {[%clk 0:04:46]} 7... Be7 {[%clk 0:04:52.3]} 8. Bxf6 {[%clk
0:04:36.5]} 8... Bxf6 {[%clk 0:04:49.6]} 9. Nd5 {[%clk 0:04:35.1]} 9... O-O
{[%clk 0:04:45.9]} 10. c4 {[%clk 0:04:29.9]} 10... a6 {[%clk 0:04:35.1]} 11.
Nbc7 {[%clk 0:04:21.4]} 11... Rb8 {[%clk 0:04:33.6]} 12. Be2 {[%clk 0:03:58.8]}
12... Nd4 {[%clk 0:04:23.4]} 13. O-O {[%clk 0:03:51.9]} 13... Bd7 {[%clk
0:04:16.4]} 14. Bg4 {[%clk 0:03:42.9]} 14... Bxg4 {[%clk 0:04:00.8]} 15. Qxg4
{[%clk 0:03:41]} 15... Rc8 {[%clk 0:03:58]} 16. Nxf6+ {[%clk 0:03:37.3]} 16...
Qxf6 {[%clk 0:03:55.3]} 17. Nd5 {[%clk 0:03:35]} 17... Qd8 {[%clk 0:03:35.4]}
18. b3 {[%clk 0:03:33.1]} 18... b5 {[%clk 0:03:24.4]} 19. Rac1 {[%clk
0:03:16.4]} 19... Kh8 {[%clk 0:03:20.7]} 20. Kh1 {[%clk 0:03:03.2]} 20... f5
{[%clk 0:03:12.5]} 21. exf5 {[%clk 0:02:53.3]} 21... Nxf5 {[%clk 0:03:07.8]} 22.
Qe4 {[%clk 0:02:29]} 22... bxc4 {[%clk 0:02:56.6]} 23. Rxc4 {[%clk 0:02:26.6]}
23... Rxc4 {[%clk 0:02:50.4]} 24. Qxc4 {[%clk 0:02:25.6]} 24... Qa5 {[%clk
0:02:39.3]} 25. b4 {[%clk 0:02:02.3]} 25... Qa3 {[%clk 0:02:29.2]} 26. h3 {[%clk
0:01:26.8]} 26... h5 {[%clk 0:02:07.6]} 27. Kg1 {[%clk 0:01:25.5]} 27... g6
{[%clk 0:02:05.3]} 28. Qe2 {[%clk 0:01:03.6]} 28... Kg7 {[%clk 0:02:00.2]} 29.
Rd1 {[%clk 0:00:56.4]} 29... Nd4 {[%clk 0:01:51.5]} 30. Qb2 {[%clk 0:00:47.9]}
30... Qxb2 {[%clk 0:01:49.3]} 0-1

[Event "Live Chess"]
[Site "Chess.com"]
[Date "2024.06.02"]
[Round "-"]
[White "Duke_of_Bebington"]
[Black "grillage"]
[Result "0-1"]
[WhiteElo "1572"]
[BlackElo "1874"]
[TimeControl "300"]
[EndTime "8:31:50 PDT"]
[Termination "grillage won by resignation"]

1. e4 {[%clk 0:04:57.3]} 1... d5 {[%clk 0:04:58.1]} 2. exd5 {[%clk 0:04:56.1]}
2... Qxd5 {[%clk 0:04:57]} 3. Nf3 {[%clk 0:04:54.8]} 3... Bg4 {[%clk 0:04:55.2]}
4. Be2 {[%clk 0:04:53.4]} 4... Bxf3 {[%clk 0:04:54.1]} 5. Bxf3 {[%clk
0:04:52.3]} 5... Qe5+ {[%clk 0:04:53.6]} 6. Qe2 {[%clk 0:04:51.3]} 6... Qxe2+
{[%clk 0:04:52.2]} 7. Bxe2 {[%clk 0:04:50.1]} 7... Nf6 {[%clk 0:04:47.6]} 8. O-O
{[%clk 0:04:48.5]} 8... e5 {[%clk 0:04:45.2]} 9. Bc4 {[%clk 0:04:40]} 9... Bc5
{[%clk 0:04:42]} 10. Re1 {[%clk 0:04:16.3]} 10... Nbd7 {[%clk 0:04:39.2]} 11. h3
{[%clk 0:04:12.9]} 11... O-O {[%clk 0:04:32.8]} 12. d3 {[%clk 0:04:11.6]} 12...
a6 {[%clk 0:04:16.1]} 13. a4 {[%clk 0:04:09.3]} 13... Rfe8 {[%clk 0:04:10.1]}
14. Nc3 {[%clk 0:04:06.8]} 14... Bb4 {[%clk 0:04:07.3]} 15. Bd2 {[%clk 0:04:06]}
15... Nb6 {[%clk 0:04:04.2]} 16. Bb3 {[%clk 0:04:03.5]} 16... a5 {[%clk
0:03:55.2]} 17. Ne4 {[%clk 0:03:51.9]} 17... Bxd2 {[%clk 0:03:47.4]} 18. Nxd2
{[%clk 0:03:50.6]} 18... Rad8 {[%clk 0:03:42.7]} 19. Nc4 {[%clk 0:03:40.8]}
19... Nxc4 {[%clk 0:03:38]} 20. Bxc4 {[%clk 0:03:40.7]} 20... c6 {[%clk
0:03:22.7]} 21. Re2 {[%clk 0:03:35.8]} 21... Nd5 {[%clk 0:03:14.1]} 22. g3
{[%clk 0:03:23.8]} 22... g6 {[%clk 0:03:12.2]} 23. Rae1 {[%clk 0:03:21.2]} 23...
Kf8 {[%clk 0:03:06.7]} 24. Bxd5 {[%clk 0:03:18.6]} 24... Rxd5 {[%clk 0:02:59.2]}
25. b3 {[%clk 0:03:12.2]} 25... f6 {[%clk 0:02:57.1]} 26. f4 {[%clk 0:03:09]}
26... Kf7 {[%clk 0:02:46.8]} 27. Kg2 {[%clk 0:02:55]} 27... b5 {[%clk
0:02:27.2]} 28. axb5 {[%clk 0:02:52.3]} 28... cxb5 {[%clk 0:02:26.3]} 29. fxe5
{[%clk 0:02:49]} 29... Rdxe5 {[%clk 0:02:24.3]} 30. Rxe5 {[%clk 0:02:47.7]}
30... Rxe5 {[%clk 0:02:23.5]} 31. Rxe5 {[%clk 0:02:46.7]} 31... fxe5 {[%clk
0:02:22.8]} 32. Kf2 {[%clk 0:02:46.3]} 32... a4 {[%clk 0:02:22]} 33. bxa4 {[%clk
0:02:44.3]} 33... bxa4 {[%clk 0:02:21.4]} 34. Ke2 {[%clk 0:02:44]} 34... a3
{[%clk 0:02:20.1]} 35. Kd2 {[%clk 0:02:43.9]} 35... a2 {[%clk 0:02:19.4]} 36.
Kc3 {[%clk 0:02:42.2]} 36... a1=Q+ {[%clk 0:02:17.9]} 0-1

[Event "Live Chess"]
[Site "Chess.com"]
[Date "2024.06.02"]
[Round "-"]
[White "Kyrylo7770"]
[Black "wadsy27"]
[Result "0-1"]
[WhiteElo "1649"]
[BlackElo "2607"]
[TimeControl "300"]
[EndTime "8:32:05 PDT"]
[Termination "wadsy27 won by checkmate"]

1. d4 {[%clk 0:04:58]} 1... d5 {[%clk 0:04:57]} 2. Bg5 {[%clk 0:04:57.1]} 2...
Nf6 {[%clk 0:04:55.4]} 3. Nf3 {[%clk 0:04:56.5]} 3... c6 {[%clk 0:04:52]} 4. e3
{[%clk 0:04:55.9]} 4... Bf5 {[%clk 0:04:50.3]} 5. c3 {[%clk 0:04:55.4]} 5... e6
{[%clk 0:04:46.5]} 6. Bd3 {[%clk 0:04:54.5]} 6... Bxd3 {[%clk 0:04:43.5]} 7.
Qxd3 {[%clk 0:04:53.5]} 7... Nbd7 {[%clk 0:04:43]} 8. c4 {[%clk 0:04:52.5]} 8...
h6 {[%clk 0:04:41.7]} 9. Bh4 {[%clk 0:04:51.4]} 9... Qa5+ {[%clk 0:04:37.1]} 10.
Nc3 {[%clk 0:04:49.8]} 10... Bb4 {[%clk 0:04:33.9]} 11. c5 {[%clk 0:04:47]}
11... Ne4 {[%clk 0:04:29.3]} 12. O-O {[%clk 0:04:42.7]} 12... Bxc3 {[%clk
0:04:24.7]} 13. bxc3 {[%clk 0:04:41.7]} 13... Qxc3 {[%clk 0:04:24.1]} 14. Qe2
{[%clk 0:04:37.6]} 14... g5 {[%clk 0:04:17.9]} 15. Rfc1 {[%clk 0:04:36.1]} 15...
Qa5 {[%clk 0:04:14.3]} 16. Bg3 {[%clk 0:04:34.9]} 16... Nxg3 {[%clk 0:03:49.8]}
17. fxg3 {[%clk 0:04:33.4]} 17... Qc7 {[%clk 0:03:45.4]} 18. Rf1 {[%clk
0:04:31.3]} 18... f5 {[%clk 0:03:27]} 19. Rab1 {[%clk 0:04:26]} 19... g4 {[%clk
0:03:22.5]} 20. Nd2 {[%clk 0:04:19.5]} 20... Nf6 {[%clk 0:03:18.6]} 21. Rf4
{[%clk 0:04:05.8]} 21... h5 {[%clk 0:03:15.6]} 22. Re1 {[%clk 0:03:55.3]} 22...
h4 {[%clk 0:03:04.9]} 23. e4 {[%clk 0:03:53.9]} 23... Nxe4 {[%clk 0:02:58]} 24.
Nxe4 {[%clk 0:03:52.7]} 24... dxe4 {[%clk 0:02:57.4]} 25. Qc4 {[%clk 0:03:46.7]}
25... Qd7 {[%clk 0:02:52.5]} 26. d5 {[%clk 0:03:38.2]} 26... Qxd5 {[%clk
0:02:41]} 27. Qc3 {[%clk 0:03:36.5]} 27... O-O-O {[%clk 0:02:38.7]} 28. Rb1
{[%clk 0:03:34.4]} 28... Qd4+ {[%clk 0:02:37]} 29. Qxd4 {[%clk 0:03:33.4]} 29...
Rxd4 {[%clk 0:02:36.6]} 30. Rf2 {[%clk 0:03:30.4]} 30... hxg3 {[%clk 0:02:35.4]}
31. hxg3 {[%clk 0:03:28.9]} 31... Rd7 {[%clk 0:02:32.4]} 32. Rfb2 {[%clk
0:03:28]} 32... Rhd8 {[%clk 0:02:28.4]} 33. a4 {[%clk 0:03:25.5]} 33... Rd1+
{[%clk 0:02:26.7]} 34. Rxd1 {[%clk 0:03:24.9]} 34... Rxd1+ {[%clk 0:02:25]} 35.
Kf2 {[%clk 0:03:24.8]} 35... Rd3 {[%clk 0:02:22.2]} 36. a5 {[%clk 0:03:23.2]}
36... a6 {[%clk 0:02:21]} 37. Rb1 {[%clk 0:03:20.7]} 37... Rc3 {[%clk
0:02:16.1]} 38. Rh1 {[%clk 0:03:19.9]} 38... Rxc5 {[%clk 0:02:14.7]} 39. Rh8+
{[%clk 0:03:18.9]} 39... Kc7 {[%clk 0:02:14.1]} 40. Rh7+ {[%clk 0:03:18.3]}
40... Kd6 {[%clk 0:02:13.6]} 41. Rxb7 {[%clk 0:03:17.4]} 41... Rxa5 {[%clk
0:02:12.6]} 42. Ke3 {[%clk 0:03:16.5]} 42... Ra2 {[%clk 0:02:11.5]} 43. Kf4
{[%clk 0:03:16.1]} 43... Rxg2 {[%clk 0:02:10.1]} 44. Rb3 {[%clk 0:03:14.8]}
44... Rf2+ {[%clk 0:02:08.7]} 45. Kg5 {[%clk 0:03:13.9]} 45... Rf3 {[%clk
0:02:07.1]} 46. Rb4 {[%clk 0:03:12.9]} 46... e3 {[%clk 0:02:06.3]} 47. Rd4+
{[%clk 0:03:11.5]} 47... Ke5 {[%clk 0:02:05.1]} 48. Rc4 {[%clk 0:03:09.5]} 48...
e2 {[%clk 0:02:04.4]} 49. Rc5+ {[%clk 0:03:08.8]} 49... Kd4 {[%clk 0:02:03.5]}
50. Rxc6 {[%clk 0:03:08.1]} 50... e1=Q {[%clk 0:02:02.6]} 51. Rd6+ {[%clk
0:03:07.6]} 51... Ke5 {[%clk 0:02:01.2]} 52. Rxa6 {[%clk 0:03:06]} 52... Rxg3
{[%clk 0:01:58]} 53. Kg6 {[%clk 0:03:04.8]} 53... Rh3 {[%clk 0:01:55.7]} 54. Kf7
{[%clk 0:03:03.9]} 54... Qb4 {[%clk 0:01:52.1]} 55. Rxe6+ {[%clk 0:03:02.7]}
55... Kf4 {[%clk 0:01:50.8]} 56. Kf6 {[%clk 0:02:58.2]} 56... Qf8+ {[%clk
0:01:48.9]} 57. Kg6 {[%clk 0:02:56.9]} 57... Rh6# {[%clk 0:01:48.5]} 0-1

[Event "Live Chess"]
[Site "Chess.com"]
[Date "2024.06.02"]
[Round "-"]
[White "Ferrarifan27"]
[Black "gmnorfolk"]
[Result "1-0"]
[WhiteElo "2153"]
[BlackElo "2120"]
[TimeControl "300"]
[EndTime "8:32:12 PDT"]
[Termination "Ferrarifan27 won by resignation"]

1. e4 {[%clk 0:04:57.8]} 1... c5 {[%clk 0:04:58.7]} 2. Nf3 {[%clk 0:04:56.4]}
2... d6 {[%clk 0:04:56]} 3. d4 {[%clk 0:04:55.2]} 3... cxd4 {[%clk 0:04:55.5]}
4. Nxd4 {[%clk 0:04:55]} 4... Nf6 {[%clk 0:04:54.9]} 5. Nc3 {[%clk 0:04:54.4]}
5... a6 {[%clk 0:04:54]} 6. Bg5 {[%clk 0:04:53.4]} 6... e6 {[%clk 0:04:51.8]} 7.
f4 {[%clk 0:04:52.2]} 7... Be7 {[%clk 0:04:50]} 8. Qf3 {[%clk 0:04:51.3]} 8...
Qc7 {[%clk 0:04:49.2]} 9. O-O-O {[%clk 0:04:48.9]} 9... Nbd7 {[%clk 0:04:48.6]}
10. g4 {[%clk 0:04:46.2]} 10... b5 {[%clk 0:04:45.7]} 11. a3 {[%clk 0:04:44.2]}
11... Rb8 {[%clk 0:04:43.3]} 12. Bxf6 {[%clk 0:04:42.3]} 12... Nxf6 {[%clk
0:04:41]} 13. g5 {[%clk 0:04:40.7]} 13... Nd7 {[%clk 0:04:40.1]} 14. h4 {[%clk
0:04:37.4]} 14... b4 {[%clk 0:04:34.2]} 15. axb4 {[%clk 0:04:35.6]} 15... Rxb4
{[%clk 0:04:33.3]} 16. Nb3 {[%clk 0:04:31.2]} 16... Qb6 {[%clk 0:04:29.1]} 17.
f5 {[%clk 0:04:21.4]} 17... Ne5 {[%clk 0:04:26.8]} 18. Qh5 {[%clk 0:04:13.7]}
18... g6 {[%clk 0:04:24.5]} 19. fxg6 {[%clk 0:04:11.9]} 19... fxg6 {[%clk
0:04:23.1]} 20. Qe2 {[%clk 0:04:09.9]} 20... a5 {[%clk 0:04:17.8]} 21. Na2
{[%clk 0:04:07.3]} 21... Rxb3 {[%clk 0:03:51.3]} 22. cxb3 {[%clk 0:04:04.9]}
22... Bd7 {[%clk 0:03:48]} 23. Qc2 {[%clk 0:03:48]} 23... O-O {[%clk 0:03:43.1]}
24. Nc3 {[%clk 0:03:46]} 24... Rb8 {[%clk 0:03:29]} 25. Bh3 {[%clk 0:03:35.8]}
25... a4 {[%clk 0:03:15.9]} 26. bxa4 {[%clk 0:03:30.9]} 26... Nc4 {[%clk
0:03:13.7]} 27. Nb5 {[%clk 0:03:14.8]} 27... Ne5 {[%clk 0:02:15.7]} 28. Qb3
{[%clk 0:03:07.5]} 28... Rc8+ {[%clk 0:02:01.4]} 29. Kb1 {[%clk 0:03:05.8]}
29... Rc4 {[%clk 0:01:56.4]} 30. Rc1 {[%clk 0:02:44.8]} 30... Qc5 {[%clk
0:00:38]} 31. Rxc4 {[%clk 0:02:31]} 31... Nxc4 {[%clk 0:00:37.1]} 32. Qc3 {[%clk
0:02:04.7]} 32... Bxb5 {[%clk 0:00:23]} 33. Bxe6+ {[%clk 0:02:02.7]} 33... Kf8
{[%clk 0:00:16.3]} 34. Rf1+ {[%clk 0:02:01]} 34... Ke8 {[%clk 0:00:14.7]} 35.
Qh8+ {[%clk 0:01:57.6]} 1-0

[Event "Live Chess"]
[Site "Chess.com"]
[Date "2024.06.02"]
[Round "-"]
[White "ACM42"]
[Black "Pandreq"]
[Result "1-0"]
[WhiteElo "2157"]
[BlackElo "1232"]
[TimeControl "300"]
[EndTime "8:32:15 PDT"]
[Termination "ACM42 won by resignation"]

1. e4 {[%clk 0:04:56]} 1... Nf6 {[%clk 0:04:58.9]} 2. e5 {[%clk 0:04:51.8]} 2...
Nd5 {[%clk 0:04:57.9]} 3. c4 {[%clk 0:04:51.2]} 3... Nb6 {[%clk 0:04:57.1]} 4.
c5 {[%clk 0:04:50.8]} 4... Nd5 {[%clk 0:04:56.2]} 5. Nc3 {[%clk 0:04:50.4]} 5...
c6 {[%clk 0:04:50.2]} 6. d4 {[%clk 0:04:47.1]} 6... d6 {[%clk 0:04:46.8]} 7.
cxd6 {[%clk 0:04:45.2]} 7... exd6 {[%clk 0:04:44.6]} 8. Nf3 {[%clk 0:04:44.4]}
8... dxe5 {[%clk 0:04:43.1]} 9. dxe5 {[%clk 0:04:36.6]} 9... Bb4 {[%clk
0:04:38.3]} 10. Qc2 {[%clk 0:04:27]} 10... Bg4 {[%clk 0:04:19.6]} 11. a3 {[%clk
0:04:16.2]} 11... Bxf3 {[%clk 0:04:11.6]} 12. axb4 {[%clk 0:03:43.7]} 12... Nxc3
{[%clk 0:03:59.1]} 13. bxc3 {[%clk 0:03:41.2]} 13... Bd5 {[%clk 0:03:52.2]} 14.
c4 {[%clk 0:03:38.7]} 14... Be6 {[%clk 0:03:50.3]} 15. Bd3 {[%clk 0:03:32.3]}
15... Nd7 {[%clk 0:03:48.4]} 16. f4 {[%clk 0:03:18.9]} 16... h6 {[%clk 0:03:42]}
17. f5 {[%clk 0:03:05.1]} 17... Nxe5 {[%clk 0:03:34.3]} 18. fxe6 {[%clk
0:03:03]} 18... Nxd3+ {[%clk 0:03:33.3]} 19. Ke2 {[%clk 0:03:02.2]} 19... Nxc1+
{[%clk 0:03:27.4]} 20. Raxc1 {[%clk 0:02:53.9]} 20... Qe7 {[%clk 0:03:22]} 21.
Rhe1 {[%clk 0:02:50.8]} 21... O-O {[%clk 0:03:12.3]} 22. Kf2 {[%clk 0:02:40.8]}
22... fxe6+ {[%clk 0:03:05.9]} 23. Kg1 {[%clk 0:02:38.4]} 23... Qxb4 {[%clk
0:03:02.7]} 24. Rxe6 {[%clk 0:02:30.2]} 24... Qc5+ {[%clk 0:02:58.4]} 25. Kh1
{[%clk 0:02:25.7]} 25... Qf2 {[%clk 0:02:55.7]} 26. Qxf2 {[%clk 0:02:16.6]}
26... Rxf2 {[%clk 0:02:53.9]} 27. Re7 {[%clk 0:02:15.4]} 27... Raf8 {[%clk
0:02:50.1]} 28. h4 {[%clk 0:02:11.6]} 28... Rf1+ {[%clk 0:02:47.3]} 29. Rxf1
{[%clk 0:02:09.7]} 29... Rxf1+ {[%clk 0:02:46.3]} 30. Kh2 {[%clk 0:02:08.9]}
30... Rf4 {[%clk 0:02:38]} 31. Kg3 {[%clk 0:02:03.7]} 31... Rxc4 {[%clk
0:02:35.2]} 32. Rxb7 {[%clk 0:02:03.1]} 32... a5 {[%clk 0:02:27.8]} 33. Ra7
{[%clk 0:02:01.7]} 33... a4 {[%clk 0:02:26.6]} 34. Ra6 {[%clk 0:02:00.3]} 34...
c5 {[%clk 0:02:23.3]} 35. Ra5 {[%clk 0:01:58.2]} 35... Kf7 {[%clk 0:02:14.9]}
36. Kf3 {[%clk 0:01:56.6]} 36... Ke6 {[%clk 0:02:14]} 37. g3 {[%clk 0:01:53.3]}
37... Kd5 {[%clk 0:02:01.2]} 38. Ra7 {[%clk 0:01:49.7]} 38... Rc3+ {[%clk
0:02:00.2]} 39. Kf4 {[%clk 0:01:47.2]} 39... a3 {[%clk 0:01:56.3]} 40. Rxg7
{[%clk 0:01:45.1]} 40... Rc2 {[%clk 0:01:46.7]} 41. g4 {[%clk 0:01:39.2]} 41...
a2 {[%clk 0:01:43.7]} 42. Ra7 {[%clk 0:01:36.5]} 42... Rh2 {[%clk 0:01:40.1]}
43. Kg3 {[%clk 0:01:31]} 43... Rd2 {[%clk 0:01:36.6]} 44. g5 {[%clk 0:01:20.4]}
44... hxg5 {[%clk 0:01:35.2]} 45. h5 {[%clk 0:01:11.9]} 45... Ke5 {[%clk
0:01:07.7]} 46. Ra5 {[%clk 0:01:06.4]} 46... Kf6 {[%clk 0:00:59.1]} 47. Ra6+
{[%clk 0:01:00.8]} 47... Kf5 {[%clk 0:00:55.3]} 48. Ra5 {[%clk 0:00:59.4]} 48...
Rd3+ {[%clk 0:00:49.8]} 49. Kf2 {[%clk 0:00:57.7]} 49... Rh3 {[%clk 0:00:47.5]}
50. Rxc5+ {[%clk 0:00:53.7]} 50... Kg4 {[%clk 0:00:44.4]} 51. Ra5 {[%clk
0:00:42.9]} 51... Rh2+ {[%clk 0:00:42.5]} 52. Kg1 {[%clk 0:00:41]} 52... Kg3
{[%clk 0:00:29.1]} 53. Ra3+ {[%clk 0:00:39.2]} 53... Kg4 {[%clk 0:00:18.8]} 54.
Kxh2 {[%clk 0:00:38.3]} 54... Kxh5 {[%clk 0:00:17.6]} 55. Rxa2 {[%clk
0:00:37.4]} 55... g4 {[%clk 0:00:15.9]} 56. Kg3 {[%clk 0:00:37.3]} 56... Kg6
{[%clk 0:00:13.7]} 57. Ra5 {[%clk 0:00:37.2]} 1-0

[Event "Live Chess"]
[Site "Chess.com"]
[Date "2024.06.02"]
[Round "-"]
[White "Karasyov2"]
[Black "Bradfield133"]
[Result "0-1"]
[WhiteElo "1156"]
[BlackElo "1821"]
[TimeControl "300"]
[EndTime "8:32:31 PDT"]
[Termination "Bradfield133 won by resignation"]

1. e4 {[%clk 0:04:58.4]} 1... c5 {[%clk 0:04:57.4]} 2. c3 {[%clk 0:04:57.4]}
2... d5 {[%clk 0:04:55.4]} 3. exd5 {[%clk 0:04:55.2]} 3... Qxd5 {[%clk
0:04:55.3]} 4. Nf3 {[%clk 0:04:54.7]} 4... Bg4 {[%clk 0:04:52]} 5. Be2 {[%clk
0:04:54.1]} 5... Nc6 {[%clk 0:04:48.2]} 6. Na3 {[%clk 0:04:53.2]} 6... Nf6
{[%clk 0:04:43.6]} 7. Nc2 {[%clk 0:04:33.4]} 7... Qd7 {[%clk 0:04:29.6]} 8. O-O
{[%clk 0:04:26.5]} 8... e6 {[%clk 0:04:27.6]} 9. d4 {[%clk 0:04:23]} 9... cxd4
{[%clk 0:04:24]} 10. Ncxd4 {[%clk 0:04:22]} 10... Nxd4 {[%clk 0:04:21.9]} 11.
Nxd4 {[%clk 0:04:20.2]} 11... Bxe2 {[%clk 0:04:20.1]} 12. Qxe2 {[%clk
0:04:19.3]} 12... a6 {[%clk 0:04:08.1]} 13. Bf4 {[%clk 0:04:15.8]} 13... Be7
{[%clk 0:04:00.2]} 14. Rfd1 {[%clk 0:04:12.6]} 14... Qc8 {[%clk 0:03:50.6]} 15.
Rd3 {[%clk 0:04:03.4]} 15... Nd5 {[%clk 0:03:41.5]} 16. Bg3 {[%clk 0:03:47.6]}
16... O-O {[%clk 0:03:25.9]} 17. h3 {[%clk 0:03:28.4]} 17... Bg5 {[%clk
0:03:12]} 18. Bh2 {[%clk 0:03:23]} 18... Nf4 {[%clk 0:03:04.5]} 19. Qg4 {[%clk
0:03:20.5]} 19... Nxd3 {[%clk 0:02:52]} 20. Qxg5 {[%clk 0:03:15.1]} 20... Qc5
{[%clk 0:02:40.3]} 21. Qe3 {[%clk 0:03:06.2]} 21... Nxb2 {[%clk 0:02:30.8]} 22.
Rb1 {[%clk 0:03:03.3]} 22... Nc4 {[%clk 0:02:27.8]} 23. Qf3 {[%clk 0:02:59.6]}
23... Nd2 {[%clk 0:02:23.4]} 24. Qxb7 {[%clk 0:02:51.8]} 24... Nxb1 {[%clk
0:02:19.3]} 25. Qxb1 {[%clk 0:02:51.5]} 25... Qxc3 {[%clk 0:02:16.7]} 26. Nf3
{[%clk 0:02:42.6]} 26... Rac8 {[%clk 0:02:12.7]} 0-1

[Event "Live Chess"]
[Site "Chess.com"]
[Date "2024.06.02"]
[Round "-"]
[White "booktrunk"]
[Black "santhoshrlokesh"]
[Result "0-1"]
[WhiteElo "1483"]
[BlackElo "1472"]
[TimeControl "300"]
[EndTime "8:32:33 PDT"]
[Termination "santhoshrlokesh won by resignation"]

1. d4 {[%clk 0:04:55.3]} 1... d5 {[%clk 0:04:59.4]} 2. Nc3 {[%clk 0:04:52.8]}
2... Bf5 {[%clk 0:04:57]} 3. Bf4 {[%clk 0:04:49.2]} 3... e6 {[%clk 0:04:56.2]}
4. Nb5 {[%clk 0:04:45.1]} 4... Na6 {[%clk 0:04:50.7]} 5. e3 {[%clk 0:04:41.6]}
5... c6 {[%clk 0:04:47.6]} 6. Nc3 {[%clk 0:04:38.7]} 6... Bd6 {[%clk 0:04:44.5]}
7. Bxa6 {[%clk 0:04:36.2]} 7... bxa6 {[%clk 0:04:42.9]} 8. Bxd6 {[%clk
0:04:32.2]} 8... Qxd6 {[%clk 0:04:41.8]} 9. Nf3 {[%clk 0:04:29.9]} 9... Nf6
{[%clk 0:04:41.2]} 10. O-O {[%clk 0:04:25.1]} 10... Ne4 {[%clk 0:04:38.3]} 11.
Nxe4 {[%clk 0:04:22]} 11... Bxe4 {[%clk 0:04:36.8]} 12. Ne5 {[%clk 0:04:18.4]}
12... O-O {[%clk 0:04:35.9]} 13. Qg4 {[%clk 0:04:12.2]} 13... c5 {[%clk
0:04:23.4]} 14. f4 {[%clk 0:04:07.9]} 14... Rab8 {[%clk 0:04:15.8]} 15. b3
{[%clk 0:04:04.7]} 15... cxd4 {[%clk 0:04:11.6]} 16. exd4 {[%clk 0:04:01.4]}
16... Bxc2 {[%clk 0:04:08.6]} 17. Rf3 {[%clk 0:04:00.2]} 17... Rbc8 {[%clk
0:03:59.9]} 18. Rg3 {[%clk 0:03:57.9]} 18... Bg6 {[%clk 0:03:56.6]} 19. Nxg6
{[%clk 0:03:55.5]} 19... fxg6 {[%clk 0:03:54.8]} 20. Rf1 {[%clk 0:03:51.4]}
20... Rc2 {[%clk 0:03:50.5]} 21. Re3 {[%clk 0:03:47]} 21... Rf6 {[%clk
0:03:37.9]} 22. h4 {[%clk 0:03:43.6]} 22... Rxa2 {[%clk 0:03:34.9]} 23. h5
{[%clk 0:03:41.7]} 23... gxh5 {[%clk 0:03:06.7]} 24. Qxh5 {[%clk 0:03:40]} 24...
h6 {[%clk 0:03:02.7]} 25. Rff3 {[%clk 0:03:35.2]} 25... Ra1+ {[%clk 0:03:00.2]}
26. Kh2 {[%clk 0:03:32.8]} 26... Rxf4 {[%clk 0:02:56.2]} 27. Qe8+ {[%clk
0:03:29.9]} 27... Rf8+ {[%clk 0:02:54.3]} 0-1